fUSD/lending_fUSD_20250916
["ID","MTS","AMOUNT","RATE_DAILY","PERIOD"]
[385855616,1758060653256,-3174.78126258,0.0003739,14]
[385855617,1758060653266,-222.42155107,0.00037393,2]
[385855618,1758060653275,-3356140.99471153,0.00037393,30]
[385855619,1758060653285,-25897.6401757,0.00037393,30]
[385855620,1758060653295,-15000.0,0.00037393,30]
[385855621,1758060653304,-178682.15632196,0.00037393,30]
[385855622,1758060653314,-183.0,0.00037393,120]
[385855623,1758060653323,-50000.0,0.00037393,30]
[385855624,1758060653333,-50000.0,0.00037393,31]
[385855625,1758060653343,-50000.0,0.00037393,32]
[385855626,1758060653352,-50000.0,0.00037393,33]
[385855627,1758060653361,-3443.91616918,0.00037393,2]
[385855628,1758060653371,-786.95067165,0.00037393,120]
[385855629,1758060653381,-27749.44714832,0.00037393,30]
[385855630,1758060653390,-105803.84,0.00037393,60]
[385855631,1758060653400,-27371.94,0.00037393,60]
[385855632,1758060653410,-1210.0,0.00037393,30]
[385855633,1758060653420,-1000.0,0.00037393,120]
[385855634,1758060653430,-1000.0,0.00037393,120]
[385855635,1758060653439,-1000.0,0.00037393,120]
[385855636,1758060653449,-1004.0,0.00037393,120]
[385855637,1758060653459,-9999.999999,0.00037393,2]
[385855638,1758060653468,-458.62478585,0.00037393,120]
[385855639,1758060653478,-57075.0,0.00037393,30]
[385855640,1758060653490,-5381.23,0.00037393,10]
[385855641,1758060653500,-1359.12371521,0.00037393,120]
[385855642,1758060653510,-145217.43405731,0.00037393,60]
[385855643,1758060653520,-1000.0,0.00037393,30]
[385855644,1758060653530,-50000.0,0.00037393,39]
[385855645,1758060653540,-108284.18161795,0.00037393,30]
[385855646,1758060653549,-6705.87276933,0.00037393,60]
[385855647,1758060653559,-63338.1058558,0.00037393,60]
[385855648,1758060653569,-50692.95780065,0.00037393,60]
[385855649,1758060653579,-55005.19855136,0.00037393,2]
[385855650,1758060653588,-58139.31915856,0.00037393,60]
[385855651,1758060653598,-10135.38015867,0.00037393,2]
[385855652,1758060653607,-18106.99047319,0.00037393,5]
[385855653,1758060653617,-3913.68159306,0.00037393,7]
[385855654,1758060653627,-56704.01022144,0.00037393,60]
[385855655,1758060653637,-3202.9239,0.00037393,30]
[385855656,1758060653647,-2231.64,0.00037393,28]
[385855657,1758060653656,-202711.0,0.00037393,60]
[385855658,1758060653667,-6544.49689632,0.00037393,120]
[385855659,1758060653677,-589.00914436,0.00037393,7]
[385855660,1758060653687,-10508.98680399,0.00037393,120]
[385855661,1758060653697,-6880.74122847,0.00037393,4]
[385855662,1758060653707,-5278.41468757,0.00037393,4]
[385855663,1758060653718,-151.29778761,0.00037393,120]
[385855664,1758060653728,-5000.0,0.00037393,35]
[385855665,1758060653738,-184.0,0.00037393,120]
[385855666,1758060653749,-5000.0,0.00037393,30]
[385855667,1758060653760,-1000.0,0.00037393,31]
[385855668,1758060653769,-82327.09595122,0.00037393,2]
[385855669,1758060653779,-23157.13723711,0.00037393,2]
[385855670,1758060653789,-150.0,0.00037393,120]
[385855671,1758060653798,-2462.12048027,0.00037393,60]
[385855672,1758060653808,-2000.0,0.00037393,4]
[385855673,1758060653817,-720.0,0.00037393,4]
[385855674,1758060653827,-471.68147051,0.00037393,30]
[385855675,1758060653838,-39999.999999,0.00037393,10]
[385855676,1758060653847,-599.12762535,0.00037393,120]
[385855677,1758060653857,-2375479.9529599,0.00037393,30]
[385855678,1758060654012,-508784.95700601,0.00037393,30]
[385855679,1758060654024,-2979.0009507,0.00037393,30]
[385855680,1758060654035,-124688.59494244,0.00037393,30]
[385855681,1758060654090,-1018.96591083,0.00029802,5]
[385855682,1758060654099,-39054.84010183,0.00037393,30]
[385855683,1758060654110,-18280.36726036,0.00037393,30]
[385855684,1758060654121,-99364.00214181,0.00037393,30]
[385855685,1758060654132,-335216.05170831,0.00037393,30]
[385855686,1758060654144,-5994631.29880767,0.00037393,30]
[385855687,1758060654154,-233.09975287,0.00037393,120]
[385855688,1758060654166,-5219.93115582,0.00037393,30]
[385855689,1758060654175,-271.10831379,0.00037393,120]
[385855690,1758060654185,-1756.79300152,0.00037393,120]
[385855691,1758060654194,-499.76421209,0.00037393,120]
[385855692,1758060654206,-2911.98792227,0.00037393,120]
[385855693,1758060654216,-2408.21909872,0.00037393,120]
[385855694,1758060654226,-1096.48966544,0.00037393,30]
[385855695,1758060654239,-501.2047651,0.00037393,7]
[385855696,1758060654251,-706.74390428,0.00037393,2]
[385855697,1758060654260,-86452.0831497,0.00037393,10]
[385855698,1758060654270,-3000.0,0.00037393,120]
[385855699,1758060654279,-1088.0,0.00037393,30]
[385855700,1758060654288,-1088.0,0.00037393,30]
[385855701,1758060654298,-1088.0,0.00037393,30]
[385855702,1758060654307,-2000.0,0.00037393,2]
[385855703,1758060654317,-2000.0,0.00037393,7]
[385855704,1758060654326,-2000.0,0.00037393,12]
[385855705,1758060654335,-1998.67963667,0.00037393,17]
[385855706,1758060654345,-15059.15,0.00037393,30]
[385855707,1758060654355,-200.0,0.00037393,120]
[385855708,1758060654365,-520.0,0.00037393,120]
[385855709,1758060654375,-200.0,0.00037393,120]
[385855710,1758060654384,-200.0,0.00037393,120]
[385855711,1758060654394,-539.24,0.00037393,120]
[385855712,1758060654404,-207.4,0.00037393,120]
[385855713,1758060654414,-250.0,0.00037393,120]
[385855714,1758060654423,-559.19188,0.00037393,120]
[385855715,1758060654433,-200.0,0.00037393,120]
[385855716,1758060654443,-215.0738,0.00037393,120]
[385855717,1758060654453,-579.88197956,0.00037393,120]
[385855718,1758060654463,-200.0,0.00037393,120]
[385855719,1758060654473,-500.0,0.00037393,120]
[385855720,1758060654482,-223.0315306,0.00037393,120]
[385855721,1758060654491,-500.0,0.00037393,120]
[385855722,1758060654501,-601.3376128,0.00037393,120]
[385855723,1758060654510,-200.0,0.00037393,120]
[385855724,1758060654519,-500.0,0.00037393,120]
[385855725,1758060654529,-200.0,0.00037393,120]
[385855726,1758060654539,-231.28369723,0.00037393,120]
[385855727,1758060654549,-151.0,0.00037393,120]
[385855728,1758060654797,-500.0,0.00037393,120]
[385855729,1758060654815,-623.58710448,0.00037393,120]
[385855730,1758060654824,-500.0,0.00037393,120]
[385855731,1758060654833,-250.0,0.00037393,120]
[385855732,1758060654843,-239.84119403,0.00037393,120]
[385855733,1758060654853,-200.0,0.00037393,120]
[385855734,1758060654862,-151.0,0.00037393,120]
[385855735,1758060654871,-646.65982734,0.00037393,120]
[385855736,1758060654881,-500.0,0.00037393,120]
[385855737,1758060654890,-250.0,0.00037393,120]
[385855738,1758060654899,-248.71531821,0.00037393,120]
[385855739,1758060654909,-200.0,0.00037393,120]
[385855740,1758060654920,-151.0,0.00037393,120]
[385855741,1758060654929,-250.0,0.00037393,120]
[385855742,1758060654940,-200.0,0.00037393,120]
[385855743,1758060654951,-257.91778498,0.00037393,120]
[385855744,1758060654960,-151.0,0.00037393,120]
[385855745,1758060654970,-500.0,0.00037393,120]
[385855746,1758060654979,-250.0,0.00037393,120]
[385855747,1758060654992,-151.0,0.00037393,120]
[385855748,1758060655002,-200.0,0.00037393,120]
[385855749,1758060655012,-151.0,0.00037393,120]
[385855750,1758060655021,-500.0,0.00037393,120]
[385855751,1758060655030,-250.0,0.00037393,120]
[385855752,1758060655040,-500.0,0.00037393,120]
[385855753,1758060655049,-500.0,0.00037393,120]
[385855754,1758060655058,-500.0,0.00037393,120]
[385855755,1758060655068,-151.0,0.00037393,120]
[385855756,1758060655078,-500.0,0.00037393,120]
[385855757,1758060655087,-500.0,0.00037393,120]
[385855758,1758060655097,-151.0,0.00037393,120]
[385855759,1758060655107,-250.0,0.00037393,120]
[385855760,1758060655117,-267.46074303,0.00037393,120]
[385855761,1758060655126,-500.0,0.00037393,120]
[385855762,1758060655136,-500.0,0.00037393,120]
[385855763,1758060655145,-151.0,0.00037393,120]
[385855764,1758060655157,-277.35679052,0.00037393,120]
[385855765,1758060655166,-500.0,0.00037393,120]
[385855766,1758060655176,-500.0,0.00037393,120]
[385855767,1758060655186,-287.61899177,0.00037393,120]
[385855768,1758060655195,-500.0,0.00037393,120]
[385855769,1758060655207,-500.0,0.00037393,120]
[385855770,1758060655217,-500.0,0.00037393,120]
[385855771,1758060655228,-298.26089446,0.00037393,120]
[385855772,1758060655243,-500.0,0.00037393,120]
[385855773,1758060655254,-500.0,0.00037393,120]
[385855774,1758060655263,-500.0,0.00037393,120]
[385855775,1758060655274,-500.0,0.00037393,120]
[385855776,1758060655284,-500.0,0.00037393,120]
[385855777,1758060655294,-500.0,0.00037393,120]
[385855778,1758060655303,-500.0,0.00037393,120]
[385855779,1758060655315,-1000.0,0.00037393,120]
[385855780,1758060655325,-151.0,0.00037393,120]
[385855781,1758060655334,-500.0,0.00037393,120]
[385855782,1758060655343,-500.0,0.00037393,120]
[385855783,1758060655352,-500.0,0.00037393,120]
[385855784,1758060655361,-1000.0,0.00037393,120]
[385855785,1758060655371,-151.0,0.00037393,120]
[385855786,1758060655380,-500.0,0.00037393,120]
[385855787,1758060655389,-500.0,0.00037393,120]
[385855788,1758060655398,-500.0,0.00037393,120]
[385855789,1758060655407,-1000.0,0.00037393,120]
[385855790,1758060655417,-151.0,0.00037393,120]
[385855791,1758060655426,-500.0,0.00037393,120]
[385855792,1758060655435,-500.0,0.00037393,120]
[385855793,1758060655444,-500.0,0.00037393,120]
[385855794,1758060655453,-160.0,0.00037393,120]
[385855795,1758060655463,-1000.0,0.00037393,120]
[385855796,1758060655473,-151.0,0.00037393,120]
[385855797,1758060655484,-500.0,0.00037393,120]
[385855798,1758060655494,-500.0,0.00037393,120]
[385855799,1758060655505,-300.0,0.00037393,120]
[385855800,1758060655515,-160.0,0.00037393,120]
[385855801,1758060655525,-151.0,0.00037393,120]
[385855802,1758060655534,-500.0,0.00037393,120]
[385855803,1758060655544,-1000.0,0.00037393,120]
[385855804,1758060655554,-311.1,0.00037393,120]
[385855805,1758060655564,-160.0,0.00037393,120]
[385855806,1758060655573,-500.0,0.00037393,120]
[385855807,1758060655582,-1000.0,0.00037393,120]
[385855808,1758060655592,-500.0,0.00037393,120]
[385855809,1758060655601,-311.1,0.00037393,120]
[385855810,1758060655611,-160.0,0.00037393,120]
[385855811,1758060655621,-151.0,0.00037393,120]
[385855812,1758060655630,-1000.0,0.00037393,120]
[385855813,1758060655639,-600.0,0.00037393,120]
[385855814,1758060655649,-160.0,0.00037393,120]
[385855815,1758060655658,-500.0,0.00037393,120]
[385855816,1758060655667,-500.0,0.00037393,120]
[385855817,1758060655677,-600.0,0.00037393,120]
[385855818,1758060655686,-500.0,0.00037393,120]
[385855819,1758060655696,-151.0,0.00037393,120]
[385855820,1758060655705,-160.0,0.00037393,120]
[385855821,1758060655714,-500.0,0.00037393,120]
[385855822,1758060655724,-500.0,0.00037393,120]
[385855823,1758060655733,-600.0,0.00037393,120]
[385855824,1758060655743,-500.0,0.00037393,120]
[385855825,1758060655752,-160.0,0.00037393,120]
[385855826,1758060655762,-500.0,0.00037393,120]
[385855827,1758060655771,-600.0,0.00037393,120]
[385855828,1758060655781,-500.0,0.00037393,120]
[385855829,1758060655790,-500.0,0.00037393,120]
[385855830,1758060655800,-600.0,0.00037393,120]
[385855831,1758060655809,-500.0,0.00037393,120]
[385855832,1758060655818,-500.0,0.00037393,120]
[385855833,1758060655827,-500.0,0.00037393,120]
[385855834,1758060655837,-500.0,0.00037393,120]
[385855835,1758060655846,-600.0,0.00037393,120]
[385855836,1758060655856,-151.0,0.00037393,120]
[385855837,1758060655865,-500.0,0.00037393,120]
[385855838,1758060655874,-151.0,0.00037393,120]
[385855839,1758060655884,-156.587,0.00037393,120]
[385855840,1758060655893,-600.0,0.00037393,120]
[385855841,1758060655903,-500.0,0.00037393,120]
[385855842,1758060655912,-500.0,0.00037393,120]
[385855843,1758060655922,-151.0,0.00037393,120]
[385855844,1758060655931,-162.380719,0.00037393,120]
[385855845,1758060655941,-600.0,0.00037393,120]
[385855846,1758060655951,-151.0,0.00037393,120]
[385855847,1758060655961,-500.0,0.00037393,120]
[385855848,1758060655972,-151.0,0.00037393,120]
[385855849,1758060655983,-162.380719,0.00037393,120]
[385855850,1758060655994,-600.0,0.00037393,120]
[385855851,1758060656004,-151.0,0.00037393,120]
[385855852,1758060656015,-151.0,0.00037393,120]
[385855853,1758060656025,-600.0,0.00037393,120]
[385855854,1758060656035,-151.0,0.00037393,120]
[385855855,1758060656046,-151.0,0.00037393,120]
[385855856,1758060656055,-600.0,0.00037393,120]
[385855857,1758060656064,-6888.0,0.00037393,120]
[385855858,1758060656073,-151.0,0.00037393,120]
[385855859,1758060656082,-7142.856,0.00037393,120]
[385855860,1758060656091,-151.0,0.00037393,120]
[385855861,1758060656100,-1000.0,0.00037393,120]
[385855862,1758060656109,-7407.141672,0.00037393,120]
[385855863,1758060656118,-151.0,0.00037393,120]
[385855864,1758060656127,-151.0,0.00037393,120]
[385855865,1758060656137,-1000.0,0.00037393,120]
[385855866,1758060656146,-7681.20591386,0.00037393,120]
[385855867,1758060656159,-151.0,0.00037393,120]
[385855868,1758060656169,-151.0,0.00037393,120]
[385855869,1758060656181,-1000.0,0.00037393,120]
[385855870,1758060656191,-7965.41053268,0.00037393,120]
[385855871,1758060656203,-151.0,0.00037393,120]
[385855872,1758060656214,-151.0,0.00037393,120]
[385855873,1758060656225,-1000.0,0.00037393,120]
[385855874,1758060656238,-8260.13072239,0.00037393,120]
[385855875,1758060656248,-151.0,0.00037393,120]
[385855876,1758060656258,-151.0,0.00037393,120]
[385855877,1758060656269,-1000.0,0.00037393,120]
[385855878,1758060656279,-8260.13072239,0.00037393,120]
[385855879,1758060656289,-151.0,0.00037393,120]
[385855880,1758060656300,-151.0,0.00037393,120]
[385855881,1758060656310,-1000.0,0.00037393,120]
[385855882,1758060656321,-151.0,0.00037393,120]
[385855883,1758060656331,-151.0,0.00037393,120]
[385855884,1758060656340,-1000.0,0.00037393,120]
[385855885,1758060656350,-151.0,0.00037393,120]
[385855886,1758060656359,-1000.0,0.00037393,120]
[385855887,1758060656369,-500.0,0.00037393,120]
[385855888,1758060656378,-151.0,0.00037393,120]
[385855889,1758060656387,-500.0,0.00037393,120]
[385855890,1758060656396,-500.0,0.00037393,120]
[385855891,1758060656406,-151.0,0.00037393,120]
[385855892,1758060656417,-500.0,0.00037393,120]
[385855893,1758060656427,-151.0,0.00037393,120]
[385855894,1758060656438,-500.0,0.00037393,120]
[385855895,1758060656448,-151.0,0.00037393,120]
[385855896,1758060656459,-500.0,0.00037393,120]
[385855897,1758060656468,-151.0,0.00037393,120]
[385855898,1758060656477,-500.0,0.00037393,120]
[385855899,1758060656486,-500.0,0.00037393,120]
[385855900,1758060656496,-151.0,0.00037393,120]
[385855901,1758060656507,-200.0,0.00037393,120]
[385855902,1758060656517,-500.0,0.00037393,120]
[385855903,1758060656526,-151.0,0.00037393,120]
[385855904,1758060656536,-151.0,0.00037393,120]
[385855905,1758060656546,-500.0,0.00037393,120]
[385855906,1758060656556,-151.0,0.00037393,120]
[385855907,1758060656565,-207.4,0.00037393,120]
[385855908,1758060656574,-151.0,0.00037393,120]
[385855909,1758060656583,-500.0,0.00037393,120]
[385855910,1758060656593,-151.0,0.00037393,120]
[385855911,1758060656602,-207.4,0.00037393,120]
[385855912,1758060656611,-151.0,0.00037393,120]
[385855913,1758060656621,-500.0,0.00037393,120]
[385855914,1758060656631,-151.0,0.00037393,120]
[385855915,1758060656641,-151.0,0.00037393,120]
[385855916,1758060656657,-500.0,0.00037393,120]
[385855917,1758060656666,-151.0,0.00037393,120]
[385855918,1758060656675,-151.0,0.00037393,120]
[385855919,1758060656685,-500.0,0.00037393,120]
[385855920,1758060656694,-151.0,0.00037393,120]
[385855921,1758060656703,-500.0,0.00037393,120]
[385855922,1758060656712,-151.0,0.00037393,120]
[385855923,1758060656721,-500.0,0.00037393,120]
[385855924,1758060656731,-151.0,0.00037393,120]
[385855925,1758060656740,-500.0,0.00037393,120]
[385855926,1758060656750,-151.0,0.00037393,120]
[385855927,1758060656759,-500.0,0.00037393,120]
[385855928,1758060656768,-151.0,0.00037393,120]
[385855929,1758060656778,-500.0,0.00037393,120]
[385855930,1758060656787,-151.0,0.00037393,120]
[385855931,1758060656796,-151.0,0.00037393,120]
[385855932,1758060656806,-151.0,0.00037393,120]
[385855933,1758060656817,-151.0,0.00037393,120]
[385855934,1758060656828,-151.0,0.00037393,120]
[385855935,1758060656838,-151.0,0.00037393,120]
[385855936,1758060656850,-151.0,0.00037393,120]
[385855937,1758060656859,-151.0,0.00037393,120]
[385855938,1758060656869,-789.79333976,0.00037393,100]
[385855939,1758060656878,-156.0,0.00037397,30]
[385855940,1758060656888,-21090.19,0.000374,14]
[385855941,1758060656898,-150.0,0.00037463,120]
[385855942,1758060656907,-500.0,0.00037464,7]
[385855943,1758060656917,-500.0,0.00037464,7]
[385855944,1758060656927,-500.0,0.00037464,7]
[385855945,1758060656936,-500.0,0.00037464,7]
[385855946,1758060656945,-500.0,0.00037464,7]
[385855947,1758060656954,-500.0,0.00037464,7]
[385855948,1758060656963,-509.58932753,0.00037464,7]
[385855949,1758060656972,-500.0,0.00037464,7]
[385855950,1758060656981,-507.38929817,0.00037464,7]
[385855951,1758060656990,-500.0,0.00037464,7]
[385855952,1758060656999,-500.0,0.00037464,7]
[385855953,1758060657009,-500.0,0.00037464,7]
[385855954,1758060657018,-500.0,0.00037464,7]
[385855955,1758060657027,-500.0,0.00037464,7]
[385855956,1758060657037,-500.0,0.00037464,7]
[385855957,1758060657046,-500.0,0.00037464,7]
[385855958,1758060657056,-500.0,0.00037464,7]
[385855959,1758060657065,-500.0,0.00037464,7]
[385855960,1758060657074,-500.0,0.00037464,7]
[385855961,1758060657084,-500.0,0.00037464,7]
[385855962,1758060657094,-500.0,0.00037464,7]
[385855963,1758060657105,-500.0,0.00037464,7]
[385855964,1758060657115,-500.0,0.00037464,7]
[385855965,1758060657125,-500.0,0.00037464,7]
[385855966,1758060657136,-500.0,0.00037464,7]
[385855967,1758060657192,-500.0,0.00037464,7]
[385855968,1758060657202,-500.0,0.00037464,7]
[385855969,1758060657212,-500.0,0.00037464,7]
[385855970,1758060657221,-500.0,0.00037464,7]
[385855971,1758060657230,-500.0,0.00037464,7]
[385855972,1758060657241,-500.0,0.00037464,7]
[385855973,1758060657251,-500.0,0.00037464,7]
[385855974,1758060657260,-500.0,0.00037464,7]
[385855975,1758060657269,-529.78402155,0.00037464,7]
[385855976,1758060657279,-888.88785544,0.00037464,7]
[385855977,1758060657288,-500.0,0.00037464,7]
[385855978,1758060657297,-500.0,0.00037464,7]
[385855979,1758060657306,-500.0,0.00037464,7]
[385855980,1758060657315,-500.0,0.00037464,7]
[385855981,1758060657324,-862.11393977,0.00037464,7]
[385855982,1758060657333,-500.0,0.00037464,7]
[385855983,1758060657342,-500.0,0.00037464,7]
[385855984,1758060657351,-500.0,0.00037464,7]
[385855985,1758060657359,-500.0,0.00037464,7]
[385855986,1758060657368,-596.61494159,0.00037464,7]
[385855987,1758060657377,-500.0,0.00037464,7]
[385855988,1758060657386,-500.0,0.00037464,7]
[385855989,1758060657395,-500.0,0.00037464,7]
[385855990,1758060657404,-996.46056709,0.00037464,7]
[385855991,1758060657413,-196.78849034,0.00037464,7]
[385855992,1758060657423,-501.84444138,0.00037464,7]
[385855993,1758060657432,-500.0,0.00037464,7]
[385855994,1758060657442,-500.0,0.00037464,7]
[385855995,1758060657451,-500.0,0.00037464,7]
[385855996,1758060657460,-500.0,0.00037464,7]
[385855997,1758060657470,-500.0,0.00037464,7]
[385855998,1758060657478,-500.0,0.00037464,7]
[385855999,1758060657487,-500.0,0.00037464,7]
[385856000,1758060657496,-500.0,0.00037464,7]
[385856001,1758060657505,-500.0,0.00037464,7]
[385856002,1758060657516,-500.0,0.00037464,7]
[385856003,1758060657527,-500.0,0.00037464,7]
[385856004,1758060657536,-745.53745227,0.00037464,7]
[385856005,1758060657545,-500.0,0.00037464,7]
[385856006,1758060657554,-500.0,0.00037464,7]
[385856007,1758060657563,-500.0,0.00037464,7]
[385856008,1758060657572,-500.0,0.00037464,7]
[385856009,1758060657581,-500.0,0.00037464,7]
[385856010,1758060657590,-500.0,0.00037464,7]
[385856011,1758060657599,-500.0,0.00037464,7]
[385856012,1758060657608,-500.0,0.00037464,7]
[385856013,1758060657618,-500.0,0.00037464,7]
[385856014,1758060657628,-500.0,0.00037464,7]
[385856015,1758060657637,-500.0,0.00037464,7]
[385856016,1758060657646,-500.0,0.00037464,7]
[385856017,1758060657655,-500.0,0.00037464,7]
[385856018,1758060657663,-500.0,0.00037464,7]
[385856019,1758060657673,-500.0,0.00037464,7]
[385856020,1758060657682,-500.0,0.00037464,7]
[385856021,1758060657692,-617.49888921,0.00037464,7]
[385856022,1758060657703,-1513.0,0.00037467,20]
[385856023,1758060657720,-705.58182524,0.00037467,20]
[385856024,1758060657729,-300.0,0.0003747,2]
[385856025,1758060657738,-400.0,0.0003747,2]
[385856026,1758060657746,-150.0,0.00037481,120]
[385856027,1758060657756,-230.45,0.00037487,60]
[385856028,1758060657765,-356.49496,0.00037488,30]
[385856029,1758060657774,-160.30479686,0.0003749,2]
[385856030,1758060657783,-150.0,0.00037494,120]
[385856031,1758060657793,-300.0,0.000375,14]
[385856032,1758060657802,-200.0,0.000375,120]
[385856033,1758060657811,-150.0,0.0003752,2]
[385856034,1758060657821,-350.0,0.0003752,2]
[385856035,1758060657830,-500.0,0.0003752,2]
[385856036,1758060657840,-500.0,0.0003752,2]
[385856037,1758060657849,-1086.0,0.0003752,2]
[385856038,1758060657858,-500.0,0.0003752,2]
[385856039,1758060657867,-500.0,0.0003752,2]
[385856040,1758060657877,-500.0,0.0003752,2]
[385856041,1758060657887,-150.0,0.0003752,2]
[385856042,1758060657898,-500.0,0.0003752,2]
[385856043,1758060657909,-150.0,0.0003752,2]
[385856044,1758060657919,-258.63166681,0.0003752,2]
[385856045,1758060657930,-260.89421384,0.0003752,2]
[385856046,1758060657940,-1239.72266788,0.00037533,6]
[385856047,1758060657949,-448.51,0.00037533,6]
[385856048,1758060657958,-317.51,0.00037553,60]
[385856049,1758060657967,-150.0,0.00037565,120]
[385856050,1758060657976,-8876.52022412,0.00037566,2]
[385856051,1758060657985,-316.0,0.0003758,2]
[385856052,1758060657995,-230.45,0.00037587,60]
[385856053,1758060658003,-4257.09236951,0.0003759,2]
[385856054,1758060658012,-309.82,0.00037636,60]
[385856055,1758060658021,-317.7,0.00037653,60]
[385856056,1758060658030,-800.0,0.00037661,7]
[385856057,1758060658039,-500.0,0.00037661,7]
[385856058,1758060658048,-200.0,0.00037666,2]
[385856059,1758060658057,-230.46,0.00037687,60]
[385856060,1758060658066,-356.49496,0.00037688,30]
[385856061,1758060658075,-1584.96,0.000377,15]
[385856062,1758060658085,-150.0,0.00037727,120]
[385856063,1758060658094,-309.82,0.00037736,60]
[385856064,1758060658103,-150.0,0.00037741,120]
[385856065,1758060658113,-1444.0,0.00037753,120]
[385856066,1758060658121,-200.0,0.00037761,2]
[385856067,1758060658130,-1604.48,0.00037793,2]
[385856068,1758060658139,-150.0,0.00037794,2]
[385856069,1758060658149,-500.0,0.00037794,2]
[385856070,1758060658161,-500.0,0.00037794,2]
[385856071,1758060658171,-1086.0,0.00037794,2]
[385856072,1758060658184,-500.0,0.00037794,2]
[385856073,1758060658193,-500.0,0.00037794,2]
[385856074,1758060658203,-500.0,0.00037794,2]
[385856075,1758060658212,-150.0,0.00037794,2]
[385856076,1758060658221,-500.0,0.00037794,2]
[385856077,1758060658230,-150.0,0.00037794,2]
[385856078,1758060658239,-150.0,0.00037794,120]
[385856079,1758060658249,-237.65,0.00037806,60]
[385856080,1758060658258,-509.49,0.00037808,60]
[385856081,1758060658268,-150.0,0.00037829,120]
[385856082,1758060658279,-309.82,0.00037836,60]
[385856083,1758060658289,-1513.0,0.00037842,20]
[385856084,1758060658299,-500.0,0.0003787,2]
[385856085,1758060658308,-284.73634531,0.0003787,120]
[385856086,1758060658320,-198.51643451,0.0003788,2]
[385856087,1758060658330,-356.49496,0.00037888,30]
[385856088,1758060658338,-309.82,0.00037936,60]
[385856089,1758060658348,-150.0,0.00037942,120]
[385856090,1758060658356,-9414.4397709,0.00037983,2]
[385856091,1758060658366,-668.80673591,0.00037999,120]
[385856092,1758060658376,-50000.0,0.00038,60]
[385856093,1758060658385,-1800.0,0.00038,39]
[385856094,1758060658395,-5000.0,0.00038,2]
[385856095,1758060658404,-300.0,0.00038,30]
[385856096,1758060658415,-300.0,0.00038,120]
[385856097,1758060658424,-2657.02672248,0.00038,120]
[385856098,1758060658433,-267.94440162,0.00038,120]
[385856099,1758060658442,-3505.0,0.00038,60]
[385856100,1758060658451,-500.0,0.00038,120]
[385856101,1758060658461,-21090.19,0.00038,14]
[385856102,1758060658470,-150.0,0.00038009,120]
[385856103,1758060658478,-150.0,0.00038021,120]
[385856104,1758060658487,-309.82,0.00038036,60]
[385856105,1758060658496,-509.49,0.00038039,80]
[385856106,1758060658505,-159.0,0.00038059,30]
[385856107,1758060658515,-150.0,0.00038068,2]
[385856108,1758060658524,-500.0,0.00038068,2]
[385856109,1758060658533,-500.0,0.00038068,2]
[385856110,1758060658542,-1086.0,0.00038068,2]
[385856111,1758060658552,-591.0,0.00038068,2]
[385856112,1758060658561,-500.0,0.00038068,2]
[385856113,1758060658569,-150.0,0.00038068,2]
[385856114,1758060658579,-200.0,0.00038068,2]
[385856115,1758060658588,-2014.00288275,0.0003807,30]